bitfinex-derivatives/quotes_ETHF0:USTF0_20260118
["timestamp","ask_amount","ask_price","bid_price","bid_amount"]
[1768715842962,1.063692,3318.2,3317.5,0.15078]
[1768715843262,1.11905989,3318.5,3317.5,0.15078]
[1768715843462,1.06371823,3318.4,3317.5,0.15078]
[1768715843670,1.06371823,3318.3,3317.5,0.15078]
[1768715843867,1.06371823,3318.2,3317.5,0.15078]
[1768715844066,1.11905989,3318.5,3317.5,0.15078]
[1768715844269,1.06371823,3318.4,3317.5,0.15078]
[1768715844465,1.06371823,3318.3,3317.5,0.15078]
[1768715844666,1.06371823,3318.2,3317.5,0.15078]
[1768715844869,1.11905989,3318.5,3317.5,0.15078]
[1768715845166,1.06374684,3318.4,3317.5,0.15078]
[1768715845467,1.06374684,3318.3,3317.5,0.15078]
[1768715845766,1.06374684,3318.2,3317.5,0.15078]
[1768715845962,1.11905989,3318.5,3317.5,0.15078]
[1768715846165,1.06378111,3318.4,3317.5,0.15078]
[1768715846373,1.11905989,3318.5,3317.5,0.15078]
[1768715846374,1.06378111,3318.3,3317.5,0.15078]
[1768715846672,1.06378111,3318.2,3317.5,0.15078]
[1768715846972,1.11905989,3318.5,3317.5,0.15078]
[1768715847168,1.06382115,3318.4,3317.5,0.15078]
[1768715847367,1.06382115,3318.3,3317.5,0.15078]
[1768715847568,1.06382115,3318.2,3317.5,0.15078]
[1768715847774,1.11905989,3318.5,3317.5,0.15078]
[1768715847972,1.06386972,3318.4,3317.5,0.15078]
[1768715848269,1.06386972,3318.3,3317.5,0.15078]
[1768715848572,1.06386972,3318.2,3317.5,0.15078]
[1768715848768,1.11905989,3318.5,3317.5,0.15078]
[1768715848967,1.0638904,3318.4,3317.5,0.15078]
[1768715849173,1.0638904,3318.3,3317.5,0.15078]
[1768715849374,1.0638904,3318.2,3317.5,0.15078]
[1768715849672,1.11905989,3318.5,3317.5,0.15078]
[1768715849874,1.06391594,3318.4,3317.5,0.15078]
[1768715850069,1.11905989,3318.5,3317.5,0.15078]
[1768715850070,1.06391594,3318.3,3317.5,0.15078]
[1768715850272,1.06391594,3318.2,3317.5,0.15078]
[1768715850475,1.11905989,3318.5,3317.5,0.15078]
[1768715850676,1.06391922,3318.4,3317.5,0.15078]
[1768715850876,1.06391922,3318.3,3317.5,0.15078]
[1768715851077,1.06391922,3318.2,3317.5,0.15078]
[1768715851374,1.11393595,3318.3,3317.5,0.15078]
[1768715851575,1.0639494,3318.2,3317.5,0.15078]
[1768715851774,1.11393595,3318.3,3317.5,0.15078]
[1768715851976,1.06394993,3318.2,3317.5,0.15078]
[1768715852175,1.11393595,3318.3,3317.5,0.15078]
[1768715852368,1.06396638,3318.2,3317.5,0.15078]
[1768715852571,1.11393595,3318.3,3317.5,0.15078]
[1768715852775,1.06396638,3318.2,3317.5,0.15078]
[1768715853074,1.11393595,3318.3,3317.5,0.15078]
[1768715853272,1.06396616,3318.2,3317.5,0.15078]
[1768715853472,1.11393595,3318.3,3317.5,0.15078]
[1768715853677,1.06398517,3318.2,3317.5,0.15078]
[1768715853974,1.11393595,3318.3,3317.5,0.15078]
[1768715854175,1.06398517,3318.2,3317.5,0.15078]
[1768715854477,0.14375753,3318.3,3317.5,0.15078]
[1768715854678,0.14375753,3318.8,3317.5,1.12095842]
[1768715854879,1.06399797,3318.7,3317.5,1.12095842]
[1768715855067,1.06399797,3318.6,3317.5,1.12095842]
[1768715855278,1.06399797,3318.5,3317.5,1.12095842]
[1768715855472,1.06399797,3318.4,3317.5,1.12095842]
[1768715855675,1.06399797,3318.3,3317.5,1.12095842]
[1768715855970,0.14375753,3318.8,3317.5,1.12095842]
[1768715856175,1.0639067,3318.7,3317.5,1.12095842]
[1768715856371,1.0639067,3318.6,3317.5,1.12095842]
[1768715856573,1.0639067,3318.5,3317.5,1.12095842]
[1768715856773,1.0639067,3318.4,3317.5,1.12095842]
[1768715857081,0.14375753,3318.8,3317.5,1.12095842]
[1768715857273,1.0638007,3318.7,3317.5,1.12095842]
[1768715857473,1.0638007,3318.6,3317.5,1.12095842]
[1768715857768,1.0638007,3318.5,3317.5,1.12095842]
[1768715857974,1.0638007,3318.4,3317.5,1.12095842]
[1768715858278,0.14375753,3318.8,3317.5,1.12095842]
[1768715858582,1.06377121,3318.7,3317.5,1.12095842]
[1768715858881,1.06377121,3318.6,3317.5,1.12095842]
[1768715859081,1.06377121,3318.5,3317.5,1.12095842]
[1768715859384,1.06377121,3318.4,3317.5,1.12095842]
[1768715859582,0.14375753,3318.8,3317.5,1.12095842]
[1768715859783,1.06372965,3318.7,3317.5,1.12095842]
[1768715859988,1.06372965,3318.6,3317.5,1.12095842]
[1768715860184,1.06372965,3318.5,3317.5,0.15078]
[1768715860483,1.06372965,3318.4,3317.5,0.15078]
[1768715860672,1.12049418,3318.7,3317.5,0.15078]
[1768715860872,1.06369407,3318.6,3317.5,0.15078]
[1768715861080,1.06369407,3318.5,3317.5,0.15078]
[1768715861281,1.06369407,3318.4,3317.5,0.15078]
[1768715861482,1.12049418,3318.7,3317.5,0.15078]
[1768715861683,1.06366514,3318.6,3317.5,0.15078]
[1768715861883,1.06366514,3318.5,3317.5,0.15078]
[1768715862083,1.06366514,3318.4,3317.5,0.15078]
[1768715862382,1.12049418,3318.7,3317.5,0.15078]
[1768715862585,1.06364069,3318.6,3317.5,0.15078]
[1768715862781,1.06364069,3318.5,3317.5,0.15078]
[1768715862974,1.06364069,3318.4,3317.5,0.15078]
[1768715863175,1.12049418,3318.7,3317.5,0.15078]
[1768715863476,1.06362022,3318.6,3317.5,0.15078]
[1768715863677,1.06362022,3318.5,3317.5,0.15078]
[1768715863877,1.06362022,3318.4,3317.5,0.15078]
[1768715864170,1.12049418,3318.7,3317.5,0.15078]
[1768715864374,1.06360309,3318.6,3317.5,0.15078]
[1768715864577,1.06360309,3318.5,3317.5,0.15078]
[1768715864877,1.06360309,3318.4,3317.5,0.15078]
[1768715865084,1.12049418,3318.7,3317.5,0.15078]
[1768715865385,1.0635689,3318.6,3317.5,0.15078]
[1768715865585,1.0635689,3318.5,3317.5,0.15078]
[1768715865782,1.0635689,3318.4,3317.5,0.15078]
[1768715865980,1.12049418,3318.7,3317.5,0.15078]
[1768715866183,1.06357561,3318.6,3317.5,0.15078]
[1768715866385,1.06357561,3318.5,3317.5,0.15078]
[1768715866576,1.06357561,3318.4,3317.5,0.15078]
[1768715866777,1.12049418,3318.7,3317.5,0.15078]
[1768715866978,1.06356152,3318.6,3317.5,0.15078]
[1768715867185,1.06356152,3318.5,3317.5,0.15078]
[1768715867380,1.06356152,3318.4,3317.5,0.15078]
[1768715867582,1.12049418,3318.7,3317.5,0.15078]
[1768715867781,1.06355084,3318.6,3317.5,0.15078]
[1768715867979,1.06355084,3318.5,3317.5,0.15078]
[1768715868176,1.06355084,3318.4,3317.5,0.15078]
[1768715868379,1.12049418,3318.7,3317.5,0.15078]
[1768715868588,1.06263294,3318.6,3317.5,0.15078]
[1768715868788,1.06263294,3318.5,3317.5,0.15078]
[1768715869084,1.06263294,3318.4,3317.5,0.15078]
[1768715869284,1.12049418,3318.7,3317.5,0.15078]
[1768715869485,1.06263132,3318.6,3317.5,0.15078]
[1768715869788,1.06263132,3318.5,3317.5,0.15078]
[1768715869975,1.06263132,3318.4,3317.5,0.15078]
[1768715870177,1.12049418,3318.7,3317.5,0.15078]
[1768715870385,1.06263266,3318.6,3317.5,0.15078]
[1768715870586,1.06263266,3318.5,3317.5,0.15078]
[1768715870888,1.06263266,3318.4,3317.5,0.15078]
[1768715871091,1.12049418,3318.7,3317.5,0.15078]
[1768715871291,1.06263713,3318.6,3317.5,0.15078]
[1768715871588,1.06263713,3318.5,3317.5,0.15078]
[1768715871788,1.06263713,3318.4,3317.5,0.15078]
[1768715871989,1.12049418,3318.7,3317.5,0.15078]
[1768715872187,1.06263718,3318.6,3317.5,0.15078]
[1768715872388,1.06263718,3318.5,3317.5,0.15078]
[1768715872582,1.06263718,3318.4,3317.5,0.15078]
[1768715872781,1.12049418,3318.7,3317.5,0.15078]
[1768715872987,1.06264487,3318.6,3317.5,0.15078]
[1768715873284,1.06264487,3318.5,3317.5,0.15078]
[1768715873485,1.06264487,3318.4,3317.5,0.15078]
[1768715873684,1.12049418,3318.7,3317.5,0.15078]
[1768715873883,1.06265389,3318.6,3317.5,0.15078]
[1768715874083,1.06265389,3318.5,3317.5,0.15078]
[1768715874291,1.06265389,3318.4,3317.5,0.15078]
[1768715874491,1.12049418,3318.7,3317.5,0.15078]
[1768715874686,1.06266678,3318.6,3317.5,0.15078]
[1768715874886,1.06266678,3318.5,3317.5,0.15078]
[1768715875184,1.12049418,3318.7,3317.5,0.15078]
[1768715875185,1.06266678,3318.4,3317.5,0.15078]
[1768715875379,0.15031576,3318.7,3317.5,0.15078]
[1768715875579,1.06268292,3318.6,3317.5,0.15078]
[1768715875778,1.06268292,3318.5,3317.5,0.15078]
[1768715875993,1.06268292,3318.4,3317.5,0.15078]
[1768715876195,0.15031576,3318.7,3317.5,0.15078]
[1768715876395,1.06270272,3318.6,3317.5,0.15078]
[1768715876594,1.06270272,3318.5,3317.5,0.15078]
[1768715876891,1.06270272,3318.4,3317.5,0.15078]
[1768715877095,0.15031576,3318.7,3317.5,0.15078]
[1768715877293,1.06272705,3318.6,3317.5,0.15078]
[1768715877592,1.06272705,3318.5,3317.5,0.15078]
[1768715877801,1.06272705,3318.4,3317.5,0.15078]
[1768715877991,0.15031576,3318.7,3317.5,0.15078]
[1768715878186,1.21317256,3318.6,3317.5,0.15078]
[1768715878386,1.06272721,3318.5,3317.5,0.15078]
[1768715879796,0.15044535,3318.4,3317.5,0.15078]
[1768715884206,1.0632507,3318.3,3317.5,0.15078]
[1768715884391,0.15044535,3318.4,3317.5,0.15078]
[1768715884599,1.06325139,3318.3,3317.5,0.15078]
[1768715884894,0.15044535,3318.4,3317.5,0.15078]
[1768715885093,1.06324067,3318.3,3317.5,0.15078]
[1768715885398,0.15044535,3318.4,3317.5,0.15078]
[1768715885602,1.06323788,3318.3,3317.5,0.15078]
[1768715885792,0.15044535,3318.4,3317.5,0.15078]
[1768715885992,1.06323887,3318.3,3317.5,0.15078]
[1768715886198,0.15044535,3318.4,3317.5,0.15078]
[1768715886393,1.06324159,3318.3,3317.5,0.15078]
[1768715886600,0.15044535,3318.4,3317.5,0.15078]
[1768715886796,1.0632375,3318.3,3317.5,0.15078]
[1768715887102,0.15044535,3318.4,3317.5,0.15078]
[1768715887402,1.063237,3318.3,3317.5,0.15078]
[1768715887601,0.15044535,3318.4,3317.5,0.15078]
[1768715887900,1.06323312,3318.3,3317.5,0.15078]
[1768715888101,0.15044535,3318.4,3317.5,0.15078]
[1768715888303,1.06323259,3318.3,3317.5,0.15078]
[1768715888499,0.15044535,3318.4,3317.5,0.15078]
[1768715888693,1.06322928,3318.3,3317.5,0.15078]
[1768715888899,0.15044535,3318.4,3317.5,0.15078]
[1768715889102,1.06322928,3318.3,3317.5,0.15078]
[1768715889400,0.15044535,3318.8,3317.5,0.15078]
[1768715889598,1.0632259,3318.7,3317.5,0.15078]
[1768715889899,1.0632259,3318.6,3317.5,0.15078]
[1768715890101,1.0632259,3318.5,3317.5,0.15078]
[1768715890301,1.0632259,3318.4,3317.5,0.15078]
[1768715890503,0.15044535,3318.8,3317.5,0.15078]
[1768715890702,1.06321989,3318.7,3317.5,0.15078]
[1768715890903,1.06321989,3318.6,3317.5,0.15078]
[1768715891112,1.06321989,3318.5,3317.5,0.15078]
[1768715891295,1.06321989,3318.4,3317.5,0.15078]
[1768715891490,0.15044535,3318.8,3317.5,0.15078]
[1768715891689,1.06321643,3318.7,3317.5,0.15078]
[1768715891894,1.06321643,3318.6,3317.5,0.15078]
[1768715892189,1.06321643,3318.5,3317.5,0.15078]
[1768715892394,1.06321643,3318.4,3317.5,0.15078]
[1768715892596,0.15044535,3318.8,3317.5,0.15078]
[1768715892903,1.06321534,3318.7,3317.5,0.15078]
[1768715893105,1.06321534,3318.6,3317.5,0.15078]
[1768715893306,1.06321534,3318.5,3317.5,0.15078]
[1768715893603,1.06321534,3318.4,3317.5,0.15078]
[1768715893803,0.15044535,3318.8,3317.5,0.15078]
[1768715894004,1.06321476,3318.7,3317.5,0.15078]
[1768715894206,1.06321476,3318.6,3317.5,0.15078]
[1768715894408,1.06321476,3318.5,3317.5,0.15078]
[1768715894711,1.06321476,3318.4,3317.5,0.15078]
[1768715894908,0.15044535,3318.8,3317.5,0.15078]
[1768715895108,1.06321511,3318.7,3317.5,0.15078]
[1768715895312,1.06321511,3318.6,3317.5,0.15078]
[1768715895509,1.06321511,3318.5,3317.5,0.15078]
[1768715895708,1.06321511,3318.4,3317.5,0.15078]
[1768715896008,0.15044535,3318.7,3317.5,0.15078]
[1768715896207,1.06321271,3318.6,3317.5,0.15078]
[1768715896409,1.06321271,3318.5,3317.5,0.15078]
[1768715896710,1.06321271,3318.4,3317.5,0.15078]
[1768715897009,0.15044535,3318.7,3317.5,0.15078]
[1768715897204,1.06321173,3318.6,3317.5,0.15078]
[1768715897402,1.06321173,3318.5,3317.5,0.15078]
[1768715897607,1.06321173,3318.4,3317.5,0.15078]
[1768715897813,0.15044535,3318.7,3317.5,0.15078]
[1768715898009,1.06321083,3318.6,3317.5,0.15078]
[1768715898194,1.06321083,3318.5,3317.5,0.15078]
[1768715898396,1.06321083,3318.4,3317.5,0.15078]
[1768715898604,0.15044535,3318.7,3317.5,0.15078]
[1768715898807,1.06354891,3318.6,3317.5,0.15078]
[1768715899011,1.06354891,3318.5,3317.5,0.15078]
[1768715899206,1.06354891,3318.4,3317.5,0.15078]
[1768715899406,0.15044535,3318.7,3317.5,0.15078]
[1768715899606,1.06354941,3318.6,3317.5,0.15078]
[1768715899806,1.06354941,3318.5,3317.5,0.15078]
[1768715900108,1.06354941,3318.4,3317.5,0.15078]
[1768715900414,0.15044535,3318.7,3317.6,0.15077]
[1768715900615,1.06352765,3318.6,3317.6,0.15077]
[1768715900910,1.06352765,3318.5,3317.6,0.15077]
[1768715901110,0.15044535,3318.7,3317.6,0.15077]
[1768715901299,1.06352094,3318.6,3317.6,0.15077]
[1768715901499,0.15044535,3318.7,3317.6,0.15077]
[1768715901500,1.06352094,3318.5,3317.6,0.15077]
[1768715901804,0.15044535,3318.7,3317.6,0.15077]
[1768715902010,1.06333954,3318.6,3317.6,0.15077]
[1768715902213,0.15044535,3318.7,3317.6,0.15077]
[1768715902403,1.06333659,3318.6,3317.6,0.15077]
[1768715902598,0.15044535,3318.7,3317.6,0.15077]
[1768715902803,1.06308743,3318.6,3317.6,0.15077]
[1768715903004,0.15044535,3318.7,3317.6,0.15077]
[1768715903202,1.06308743,3318.6,3317.6,0.15077]
[1768715903408,0.15044535,3318.7,3317.6,0.15077]
[1768715903602,1.06293496,3318.6,3317.6,0.15077]
[1768715903804,0.15044535,3318.7,3317.6,0.15077]
[1768715904006,1.06293496,3318.6,3317.6,0.15077]
[1768715904209,0.15044535,3318.7,3317.6,0.15077]
[1768715916224,0.15194121,3319.2,3317.6,0.15077]
[1768715916425,0.15194121,3319.0,3317.6,0.15077]
[1768715916627,1.06230031,3318.9,3317.6,0.15077]
[1768715918526,1.21424152,3318.9,3317.6,0.15077]
[1768715918827,1.06230031,3318.8,3317.6,0.15077]
[1768715922934,1.21424152,3318.7,3317.6,0.15077]
[1768715923133,0.15194121,3318.7,3317.6,0.15077]
[1768715931338,1.06015786,3318.6,3317.6,0.15077]
[1768715931531,0.15194121,3318.7,3317.6,0.15077]
[1768715931728,1.06015786,3318.6,3317.6,0.15077]
[1768715931931,0.15194121,3318.7,3317.6,0.15077]
[1768715932130,1.06015786,3318.6,3317.6,0.15077]
[1768715932342,0.15194121,3318.7,3317.6,0.15077]
[1768715932635,1.06017022,3318.6,3317.6,0.15077]
[1768715932838,0.15194121,3318.7,3317.6,0.15077]
[1768715933037,1.06017022,3318.6,3317.6,0.15077]
[1768715933238,0.15194121,3318.7,3317.6,0.15077]
[1768715933444,1.06018313,3318.6,3317.6,0.15077]
[1768715933635,0.15194121,3318.7,3317.6,0.15077]
[1768715933837,1.06018312,3318.6,3317.6,0.15077]
[1768715934036,0.15194121,3318.7,3317.6,0.15077]
[1768715934242,1.06018312,3318.6,3317.6,0.15077]
[1768715934443,0.15194121,3318.7,3317.6,0.15077]
[1768715934642,1.06018685,3318.6,3317.6,0.15077]
[1768715934843,0.15194121,3318.7,3317.6,0.15077]
[1768715935045,1.06018685,3318.6,3317.6,0.15077]
[1768715935345,0.15194121,3318.7,3317.6,0.15077]
[1768715935643,1.06019009,3318.6,3317.6,0.15077]
[1768715935943,0.15194121,3318.7,3317.6,0.15077]
[1768715936143,1.06019009,3318.6,3317.6,0.15077]
[1768715936335,0.15194121,3318.7,3317.6,0.15077]
[1768715936535,1.06019317,3318.6,3317.6,0.15077]
[1768715936742,0.15194121,3318.7,3317.6,0.15077]
[1768715936944,1.06019317,3318.6,3317.6,0.15077]
[1768715937145,0.15194121,3318.7,3317.6,0.15077]
[1768715937444,0.96979213,3318.5,3317.6,0.15077]
[1768715945145,0.96979213,3318.1,3317.6,0.15077]
[1768715945351,1.11806052,3318.1,3317.6,0.15077]
[1768715946448,1.11806052,3318.1,3317.2,0.146]
[1768715946640,0.96979213,3317.8,3317.2,0.146]
[1768715946945,0.96979213,3317.8,3317.0,0.1508]
[1768715959452,0.96979213,3318.0,3317.0,0.1508]
[1768715970666,0.14826839,3318.1,3317.0,0.1508]
[1768715970868,0.96979213,3318.0,3317.0,0.1508]
[1768715977674,0.14826839,3318.1,3317.0,0.1508]
[1768715977874,0.96979213,3318.0,3317.0,0.1508]
[1768715994992,1.11257273,3318.0,3317.0,0.1508]
[1768715999295,0.1427806,3318.0,3317.0,0.1508]
[1768716000494,0.1427806,3318.0,3317.1,0.1508]
[1768716002694,1.20214834,3317.9,3316.5,0.14866869]
[1768716002994,0.1427806,3317.9,3316.5,0.00266869]
[1768716003393,0.1427806,3317.9,3316.5,0.15348869]
[1768716006700,0.1427806,3317.9,3316.6,0.15082]
[1768716024320,0.97014132,3318.1,3316.6,0.15082]
[1768716024522,1.06206888,3318.0,3316.6,0.15082]
[1768716024724,1.06206888,3317.9,3316.6,0.15082]
[1768716024926,0.97014132,3318.1,3316.6,0.15082]
[1768716025222,1.06206888,3318.0,3316.6,0.15082]
[1768716025417,1.06206888,3317.9,3316.6,0.15082]
[1768716025607,0.97014132,3318.1,3316.6,0.15082]
[1768716025811,1.06210581,3318.0,3316.6,0.15082]
[1768716026122,1.06210581,3317.9,3316.6,0.15082]
[1768716026318,0.97014132,3317.7,3316.6,0.15082]
[1768716029729,0.15161414,3318.0,3316.6,0.15082]
[1768716030028,1.0620409,3317.9,3316.6,0.15082]
[1768716030220,1.0620409,3317.8,3316.6,0.15082]
[1768716030419,0.15161414,3318.0,3316.6,0.15082]
[1768716030620,1.06198914,3317.9,3316.6,0.15082]
[1768716030820,1.06198914,3317.8,3316.6,0.15082]
[1768716031022,0.15161414,3318.0,3316.6,0.15082]
[1768716031321,1.0619887,3317.9,3316.6,0.15082]
[1768716031519,1.0619887,3317.8,3316.6,0.15082]
[1768716031720,2.0321723,3317.7,3316.6,0.15082]
[1768716031917,1.06203098,3317.6,3316.5,0.00266869]
[1768716032831,1.21364512,3317.6,3316.5,0.00266869]
[1768716033127,1.06203098,3317.5,3316.5,0.00266869]
[1768716033316,0.15161414,3317.6,3316.5,0.00266869]
[1768716033522,1.06165369,3317.5,3316.5,0.00266869]
[1768716033721,1.06165369,3317.4,3316.5,0.00266869]
[1768716034029,0.15161414,3317.6,3316.5,0.00266869]
[1768716034234,1.06165458,3317.5,3316.5,0.00266869]
[1768716034422,1.06165458,3317.4,3316.5,0.00266869]
[1768716034733,0.15161414,3317.6,3316.5,0.00266869]
[1768716035031,1.061313,3317.5,3316.5,0.00266869]
[1768716035234,1.061313,3317.4,3316.5,0.00266869]
[1768716035528,0.97014132,3317.7,3316.5,0.00266869]
[1768716035728,1.06105994,3317.6,3316.5,0.00266869]
[1768716035929,1.06105994,3317.5,3316.5,0.00266869]
[1768716036128,1.06105994,3317.4,3316.5,0.00266869]
[1768716036330,0.97014132,3317.7,3316.5,0.00266869]
[1768716036533,1.06086019,3317.6,3316.5,0.00266869]
[1768716036733,1.06086019,3317.5,3316.5,0.00266869]
[1768716036928,0.97014132,3317.7,3316.5,0.00266869]
[1768716037123,1.06086002,3317.6,3316.5,0.00266869]
[1768716037320,1.06086002,3317.5,3316.5,0.00266869]
[1768716037533,0.97014132,3317.7,3316.5,0.00266869]
[1768716037836,1.06069797,3317.6,3316.5,0.00266869]
[1768716038129,1.06069797,3317.5,3316.5,0.00266869]
[1768716038331,0.97014132,3317.7,3316.5,0.00266869]
[1768716038530,1.06056511,3317.6,3316.5,0.00266869]
[1768716038730,1.06056511,3317.5,3316.5,0.00266869]
[1768716038930,0.97014132,3317.7,3316.5,0.00266869]
[1768716039133,1.06056547,3317.6,3316.5,0.00266869]
[1768716039330,1.06056547,3317.5,3316.5,0.00266869]
[1768716039530,0.97014132,3317.7,3316.5,0.00266869]
[1768716039835,1.06045542,3317.6,3316.5,0.00266869]
[1768716040133,1.06045542,3317.5,3316.5,0.00266869]
[1768716040339,1.12929091,3317.7,3316.5,0.00266869]
[1768716040640,1.06036553,3317.6,3316.5,0.00266869]
[1768716040824,1.06036553,3317.5,3316.5,0.00266869]
[1768716041024,0.97014132,3317.8,3316.5,0.00266869]
[1768716041225,1.06036548,3317.7,3316.5,0.00266869]
[1768716041430,1.06036548,3317.6,3316.5,0.00266869]
[1768716041631,1.06036548,3317.5,3316.5,0.00266869]
[1768716041830,0.97014132,3317.8,3316.5,0.00266869]
[1768716042034,1.06029673,3317.7,3316.5,0.00266869]
[1768716042335,1.06029673,3317.6,3316.5,0.00266869]
[1768716042535,1.06029673,3317.5,3316.5,0.00266869]
[1768716042836,0.97014132,3317.8,3316.5,0.00266869]
[1768716043026,1.06024291,3317.7,3316.5,0.00266869]
[1768716043340,1.06024291,3317.6,3316.5,0.00266869]
[1768716043532,1.06024291,3317.5,3316.5,0.00266869]
[1768716043727,0.97014132,3317.8,3316.5,0.00266869]
[1768716044025,1.06020517,3317.7,3316.5,0.00266869]
[1768716044320,1.06020517,3317.6,3316.5,0.00266869]
[1768716044519,0.97014132,3317.8,3316.5,0.00266869]
[1768716044520,1.06020517,3317.5,3316.5,0.00266869]
[1768716044727,0.97014132,3317.8,3316.5,0.00266869]
[1768716044921,1.06018393,3317.7,3316.5,0.00266869]
[1768716045123,1.06018393,3317.6,3316.5,0.00266869]
[1768716045323,1.06018393,3317.5,3316.5,0.00266869]
[1768716045523,0.97014132,3317.8,3316.5,0.00266869]
[1768716045724,1.0601781,3317.7,3316.5,0.00266869]
[1768716045927,1.0601781,3317.6,3316.5,0.00266869]
[1768716046131,1.0601781,3317.5,3316.5,0.00266869]
[1768716046327,0.15914959,3317.9,3316.5,0.00266869]
[1768716046539,1.06018715,3317.8,3316.5,0.00266869]
[1768716046737,1.06018715,3317.7,3316.5,0.00266869]
[1768716047039,1.06018715,3317.6,3316.5,0.00266869]
[1768716047337,1.06018715,3317.5,3316.5,0.00266869]
[1768716047539,1.12929091,3317.9,3316.5,0.00266869]
[1768716047738,1.06021156,3317.8,3316.5,0.00266869]
[1768716047939,1.06021156,3317.7,3316.5,0.00266869]
[1768716048139,1.06021156,3317.6,3316.5,0.00266869]
[1768716048443,1.06021156,3317.5,3316.5,0.00266869]
[1768716048634,1.12929091,3317.9,3316.5,0.00266869]
[1768716048833,1.0585794,3317.8,3316.5,0.00266869]
[1768716049133,1.0585794,3317.7,3316.5,0.00266869]
[1768716049432,1.0585794,3317.6,3316.5,0.00266869]
[1768716049633,1.0585794,3317.5,3316.5,0.00266869]
[1768716049834,1.12929091,3317.9,3316.5,0.00266869]
[1768716050034,1.05863563,3317.8,3316.5,0.00266869]
[1768716050326,1.05863563,3317.7,3316.5,0.00266869]
[1768716050532,1.05863563,3317.6,3316.5,0.00266869]
[1768716050730,1.05863563,3317.5,3316.5,0.00266869]
[1768716051034,1.12929091,3317.9,3316.5,0.00266869]
[1768716051233,1.05870929,3317.8,3316.5,0.00266869]
[1768716051444,1.05870929,3317.7,3316.5,0.00266869]
[1768716051643,1.05870929,3317.6,3316.5,0.00266869]
[1768716051844,1.05870929,3317.5,3316.5,0.00266869]
[1768716052141,1.12929091,3317.9,3316.5,0.00266869]
[1768716052344,1.22922728,3317.8,3316.5,0.00266869]
[1768716052533,1.05891676,3317.7,3316.5,0.00266869]
[1768716052733,1.05891676,3317.6,3316.5,0.00266869]
[1768716053045,1.05891676,3317.5,3316.5,0.00266869]
[1768716053245,0.17031052,3317.8,3316.5,0.00266869]
[1768716053548,1.05905533,3317.7,3316.5,0.00266869]
[1768716053842,0.17031052,3317.8,3316.5,0.00266869]
[1768716053843,1.05905533,3317.6,3316.5,0.00266869]
[1768716054043,0.17031052,3317.8,3316.5,0.00266869]
[1768716054044,1.05905533,3317.5,3316.5,0.00266869]
[1768716054339,1.05922693,3317.4,3316.5,0.00266869]
[1768716054544,0.17031052,3317.8,3316.5,0.00266869]
[1768716054741,1.05922693,3317.7,3316.5,0.00266869]
[1768716055043,1.05922693,3317.6,3316.5,0.00266869]
[1768716055244,1.05922693,3317.5,3316.5,0.00266869]
[1768716055433,1.05922693,3317.4,3316.5,0.00266869]
[1768716055745,1.05922693,3317.3,3316.5,0.00266869]
[1768716055946,1.05922693,3317.2,3316.5,0.00266869]
[1768716056243,1.05922693,3317.1,3316.5,0.00266869]
[1768716074758,1.05922693,3317.1,3316.0,1.12133352]
[1768716075755,1.05922693,3317.1,3316.0,1.1236571]
[1768716077454,1.05922693,3317.1,3316.0,1.28797568]
[1768716094275,0.00263934,3317.2,3316.0,1.28797568]
[1768716094475,1.06108675,3317.1,3316.0,1.28797568]
[1768716097471,1.06110674,3317.0,3316.0,1.28797568]
[1768716097673,1.06110674,3316.9,3316.0,1.28797568]
[1768716097874,0.00263934,3317.2,3316.0,1.28797568]
[1768716098075,1.06109653,3317.1,3316.0,1.28797568]
[1768716098371,1.06109653,3317.0,3316.0,1.28797568]
[1768716098573,1.06109653,3316.9,3316.0,1.28797568]
[1768716098776,0.00263934,3317.2,3316.0,1.28797568]
[1768716098964,1.06109681,3317.1,3316.0,1.28797568]
[1768716099169,1.06109681,3317.0,3316.0,1.28797568]
[1768716099366,1.06109681,3316.9,3316.0,0.31749216]
[1768716099580,0.00263934,3317.2,3316.1,0.97048352]
[1768716099878,1.0610969,3317.1,3316.1,0.97048352]
[1768716100079,1.0610969,3317.0,3316.1,0.97048352]
[1768716100379,1.0610969,3316.9,3316.1,0.97048352]
[1768716100587,0.00263934,3317.2,3316.1,0.97048352]
[1768716100878,1.06109677,3317.1,3316.1,0.97048352]
[1768716101076,1.06109677,3317.0,3316.1,0.97048352]
[1768716101268,1.06109677,3316.9,3316.1,0.97048352]
[1768716101469,0.00263934,3317.2,3316.1,0.97048352]
[1768716101672,1.06109696,3317.1,3316.1,0.97048352]
[1768716101872,1.06109696,3317.0,3316.1,0.97048352]
[1768716102069,1.06109696,3316.9,3316.1,0.97048352]
[1768716102278,0.00263934,3317.2,3316.1,0.97048352]
[1768716102481,1.06109695,3317.1,3316.1,0.97048352]
[1768716102669,1.06109695,3317.0,3316.1,0.97048352]
[1768716102869,1.06109695,3316.9,3316.1,0.97048352]
[1768716103170,0.00263934,3317.2,3316.1,0.97048352]
[1768716103369,1.06109694,3317.1,3316.7,0.97048352]
[1768716103572,1.06109694,3317.0,3316.5,0.97048352]
[1768716103778,0.00263934,3317.2,3316.3,0.97048352]
[1768716103974,1.06105865,3317.1,3316.3,0.97048352]
[1768716104172,0.00263934,3317.2,3316.3,0.97048352]
[1768716104173,1.06105865,3317.0,3316.3,0.97048352]
[1768716104378,0.00263934,3317.2,3316.3,0.97048352]
[1768716104580,1.06094356,3317.1,3316.3,0.97048352]
[1768716104877,0.00263934,3317.2,3316.3,0.97048352]
[1768716104878,1.06094356,3317.0,3316.3,0.97048352]
[1768716105073,0.00263934,3317.2,3316.3,0.97048352]
[1768716105274,1.06094356,3317.1,3316.3,1.14869712]
[1768716105466,0.00263934,3317.2,3316.3,1.14869712]
[1768716105676,1.06088496,3317.1,3316.3,1.14869712]
[1768716105875,0.00263934,3317.2,3316.3,1.14869712]
[1768716106076,1.06088435,3317.1,3316.3,1.14869712]
[1768716106284,0.00263934,3317.2,3316.3,1.14869712]
[1768716106479,1.06083971,3317.1,3316.3,1.14869712]
[1768716106680,0.00263934,3317.2,3316.3,1.14869712]
[1768716106879,1.06083971,3317.1,3316.3,1.14869712]
[1768716107080,0.00263934,3317.2,3316.3,1.14869712]
[1768716107382,1.06083971,3317.1,3316.3,1.14869712]
[1768716107582,0.00263934,3317.2,3316.3,1.14869712]
[1768716107885,1.06080395,3317.1,3316.3,1.14869712]
[1768716108085,0.00263934,3317.2,3316.3,1.14869712]
[1768716108286,1.06079122,3317.1,3316.3,1.14869712]
[1768716108488,0.00263934,3317.2,3316.3,1.14869712]
[1768716108784,1.05908481,3317.1,3316.3,1.14869712]
[1768716108980,0.00263934,3317.2,3316.3,1.14869712]
[1768716109180,1.05908481,3317.1,3316.3,1.14869712]